bitfinex/quotes_ETHUSD_20260228
["timestamp","ask_amount","ask_price","bid_price","bid_amount"]
[1772275802247,0.001,1865.3,1865.1,1.4569594]
[1772275802453,0.001,1865.3,1865.1,2.03]
[1772275802653,0.001,1865.3,1865.0,2.03]
[1772275803468,0.001,1865.3,1865.0,4.82743842]
[1772275804594,0.001,1865.3,1864.7,5.36386447]
[1772275804595,1.42388903,1865.3,1864.7,0.0011]
[1772275804954,1.42288903,1865.1,1864.7,1.1701]
[1772275806467,1.42288903,1865.1,1864.7,2.51079745]
[1772275807397,1.42288903,1865.0,1864.7,2.0321]
[1772275808707,0.001,1865.3,1864.7,2.0321]
[1772275808708,0.001,1865.3,1864.8,1.4569594]
[1772275809190,0.001,1865.3,1864.9,2.79751385]
[1772275809500,0.001,1865.3,1865.0,1.4569594]
[1772275809666,0.001,1865.3,1865.1,3.4889594]
[1772275810268,0.001,1865.3,1865.2,1.4569594]
[1772275811207,0.001,1865.3,1865.2,2.79729823]
[1772275813587,2.77769546,1865.9,1865.3,1.34873526]
[1772275813909,2.77769546,1865.9,1865.4,3.38573526]
[1772275814230,1.43785909,1865.9,1865.4,3.38573526]
[1772275814995,7.67812565,1867.0,1865.5,1.34873526]
[1772275815200,1.43785909,1866.3,1865.6,1.34873526]
[1772275815521,1.43785909,1866.3,1865.8,1.34873526]
[1772275815690,1.43785909,1866.5,1866.0,1.34873526]
[1772275816623,1.43785909,1866.6,1866.1,2.037]
[1772275816801,1.43785909,1866.8,1866.2,1.34873526]
[1772275817429,2.77694371,1867.0,1866.3,2.68828409]
[1772275817623,1.33893683,1867.2,1866.4,1.34873526]
[1772275817797,2.77679592,1867.2,1866.5,3.38473526]
[1772275817997,2.77679592,1867.2,1866.6,1.34873526]
[1772275818602,1.43785909,1867.1,1866.5,2.036]
[1772275818823,1.43785909,1867.1,1866.6,2.036]
[1772275819426,1.43785909,1867.1,1866.6,3.37529509]
[1772275819803,1.43785909,1867.0,1866.6,2.036]
[1772275821126,1.43785909,1867.0,1866.1,2.59696797]
[1772275821127,1.43785909,1867.0,1866.4,2.035]
[1772275821430,1.43785909,1867.0,1866.4,1.568]
[1772275821728,1.43785909,1866.8,1866.4,1.568]
[1772275822207,2.77694997,1867.0,1866.4,4.2562036]
[1772275822541,1.43785909,1867.0,1866.5,1.34873526]
[1772275822841,2.77673163,1867.3,1866.5,1.34873526]
[1772275823006,1.43785909,1867.2,1866.6,1.34873526]
[1772275823821,0.001,1867.1,1866.7,1.33926179]
[1772275824020,0.001,1867.1,1866.8,2.034]
[1772275824021,1.43885909,1867.1,1866.8,2.034]
[1772275825006,1.43885909,1867.1,1866.7,0.60487943]
[1772275825833,1.43785909,1866.9,1866.5,2.033]
[1772275826003,1.43885909,1867.1,1866.5,7.11280881]
[1772275826335,1.43885909,1867.1,1866.6,1.34873526]
[1772275826730,0.001,1867.1,1866.6,1.34873526]
[1772275827935,0.001,1867.1,1866.6,2.68801228]
[1772275828432,1.43885909,1867.1,1866.7,2.034]
[1772275828818,1.43885909,1867.1,1866.5,3.73107355]
[1772275828819,1.43885909,1867.1,1866.5,1.34873526]
[1772275829008,1.43885909,1867.1,1866.4,1.34873526]
[1772275829208,1.43885909,1867.1,1866.5,5.07980881]
[1772275829427,0.001,1867.1,1866.6,1.34873526]
[1772275829752,1.43885909,1867.1,1866.7,2.036]
[1772275829958,1.43785909,1867.0,1866.7,2.036]
[1772275831619,0.001,1867.1,1866.7,2.036]
[1772275831954,0.001,1867.1,1866.7,8.45506635]
[1772275832449,0.001,1867.1,1866.9,3.73107355]
[1772275832663,11.50444798,1867.9,1867.3,1.34873526]
[1772275832664,1.33843945,1867.9,1867.3,1.34873526]
[1772275832823,0.02084905,1867.4,1867.2,3.73107355]
[1772275833020,0.02084905,1867.4,1867.3,0.868]
[1772275833539,0.02084905,1867.4,1866.8,0.065536]
[1772275833540,0.02085004,1867.3,1866.8,5.00786508]
[1772275833842,0.02085004,1867.3,1867.1,5.07980881]
[1772275834038,0.02085004,1867.3,1867.2,1.34873526]
[1772275834339,0.02085004,1867.3,1867.1,5.06999387]
[1772275834340,0.02084905,1867.4,1867.1,5.06999387]
[1772275834725,0.02084905,1867.4,1867.2,2.038]
[1772275834920,0.02084905,1867.4,1867.3,2.039]
[1772275835234,1.45870814,1867.4,1867.2,2.039]
[1772275836647,1.45870814,1867.4,1866.8,8.67340263]
[1772275836648,2.79746933,1867.4,1866.8,8.67340263]
[1772275836845,1.43785909,1867.3,1866.8,3.59359382]
[1772275837014,1.43785909,1867.3,1866.9,2.038]
[1772275837354,0.02084905,1867.4,1867.0,3.73107355]
[1772275837519,0.02084905,1867.4,1867.0,5.76907355]
[1772275837720,0.001,1867.3,1867.0,2.038]
[1772275838143,0.001,1867.3,1867.1,0.0011]
[1772275839124,0.02084909,1867.2,1867.1,0.0011]
[1772275839948,0.001,1867.3,1867.1,2.0391]
[1772275841239,0.001,1867.3,1867.1,0.0011]
[1772275841425,0.001,1867.3,1867.1,2.0401]
[1772275841426,1.33630978,1867.3,1867.1,2.0401]
[1772275842645,1.33630978,1867.3,1866.8,3.59359382]
[1772275842950,1.42472375,1867.1,1866.8,3.59359382]
[1772275843248,1.42472375,1867.1,1866.1,1.46756267]
[1772275843546,1.42472375,1867.1,1866.3,1.319]
[1772275843753,1.42472375,1867.1,1866.2,1.824]
[1772275844427,1.42472375,1867.1,1866.0,1.46756267]
[1772275844627,1.42472375,1867.1,1866.1,1.795]
[1772275845260,1.42472375,1866.9,1866.1,1.795]
[1772275846069,1.42472375,1866.8,1866.1,2.037]
[1772275846226,1.42472375,1866.8,1866.1,1.691]
[1772275846751,1.42472375,1866.8,1865.9,2.037]
[1772275846928,1.42472375,1866.8,1865.8,1.46756267]
[1772275847261,1.42472375,1866.6,1865.8,3.02656267]
[1772275848464,5.1557973,1866.5,1865.7,2.96031285]
[1772275848627,1.42472375,1866.4,1865.7,2.96031285]
[1772275849446,1.42472375,1866.2,1865.7,2.96031285]
[1772275850724,1.42472375,1866.2,1865.9,0.0011]
[1772275851550,1.3396924,1866.1,1865.9,0.0011]
[1772275852968,2.76441615,1866.1,1865.9,0.0011]
[1772275853268,1.42472375,1866.0,1865.8,0.0011]
[1772275853443,1.42472375,1866.2,1865.8,0.0011]
[1772275853646,5.35763922,1866.5,1865.8,1.46866267]
[1772275853647,1.42472375,1866.4,1865.8,1.46866267]
[1772275853872,1.42472375,1866.4,1865.8,0.0011]
[1772275854961,21.83369476,1866.8,1866.1,5.19863622]
[1772275854962,2.76397056,1866.8,1866.1,5.19863622]
[1772275855142,2.76397056,1866.8,1866.1,1.46756267]
[1772275855143,1.42472375,1866.7,1866.1,1.46756267]
[1772275855347,1.42472375,1866.7,1866.1,3.50156267]
[1772275855669,2.76405729,1866.6,1866.1,2.034]
[1772275856870,1.42472375,1866.5,1865.9,1.46756267]
[1772275857042,1.42472375,1866.5,1865.9,1.791]
[1772275857660,1.33947706,1866.4,1865.9,1.791]
[1772275857852,2.76420081,1866.4,1865.8,2.0341]
[1772275858249,1.42472375,1866.3,1865.8,0.0011]
[1772275858464,1.42472375,1866.3,1865.8,2.0331]
[1772275859251,1.42472375,1866.3,1865.8,0.0011]
[1772275859452,1.42472375,1866.3,1865.8,2.0331]
[1772275859652,2.76434436,1866.2,1865.8,0.0011]
[1772275859851,1.42472375,1866.1,1865.8,0.0011]
[1772275860467,1.42472375,1866.1,1865.7,2.96031285]
[1772275861055,1.42472375,1866.1,1865.4,0.0011]
[1772275861564,1.42472375,1865.9,1865.4,0.0011]
[1772275861764,2.76463156,1865.8,1865.4,0.0011]
[1772275861968,1.42472375,1865.7,1865.4,0.0011]
[1772275863378,1.42472375,1865.7,1865.3,0.0011]
[1772275863780,1.42472375,1865.5,1865.3,0.0011]
[1772275864151,1.42472375,1865.5,1865.1,0.0011]
[1772275865879,1.34019513,1865.4,1865.1,0.0011]
[1772275866090,2.76470338,1865.8,1865.1,1.46866267]
[1772275866392,5.36004303,1865.7,1865.1,1.46866267]
[1772275866974,1.42472375,1865.6,1865.1,0.0011]
[1772275867207,1.42472375,1865.5,1864.5,0.0011]
[1772275867350,3.73107355,1865.6,1864.5,0.8691]
[1772275867351,1.42472375,1865.3,1864.5,0.8691]
[1772275867688,1.42472375,1865.3,1864.5,0.0011]
[1772275867847,1.42472375,1865.1,1864.5,0.0011]
[1772275869981,1.42472375,1864.9,1864.5,0.0011]
[1772275871191,1.42472375,1864.9,1864.1,2.5092713]
[1772275871192,1.42472375,1864.9,1864.0,1.43304376]
[1772275871505,1.46140843,1864.5,1863.7,0.0011]
[1772275872003,1.46140843,1864.3,1863.7,0.0011]
[1772275874303,1.46140843,1864.1,1863.7,0.0011]
[1772275876409,1.34120171,1864.0,1863.8,0.0011]
[1772275877333,2.80261014,1864.0,1863.8,0.0011]
[1772275877952,1.46140843,1863.9,1863.8,0.0011]
[1772275878225,1.46140843,1863.9,1863.7,0.0011]
[1772275878226,1.46140843,1863.9,1863.5,0.0011]
[1772275878527,1.34134563,1863.8,1863.5,0.0011]
[1772275878723,1.46140843,1863.7,1863.5,0.0011]
[1772275879706,1.34134563,1863.8,1863.5,0.0011]
[1772275879905,2.80275406,1863.8,1863.5,0.0011]
[1772275880107,1.46140843,1863.7,1863.3,0.0011]
[1772275880310,1.34148959,1863.6,1863.3,0.0011]
[1772275880509,1.46140843,1863.5,1863.3,0.0011]
[1772275881115,1.46140843,1863.5,1863.1,0.0022]
[1772275881302,1.46140843,1863.5,1862.5,2.624746]
[1772275881503,1.46140843,1863.3,1862.5,2.62478678]
[1772275881838,1.46140843,1863.3,1862.6,1.28250902]
[1772275882025,1.46140843,1863.5,1862.6,1.28250902]
[1772275882401,1.46140843,1863.3,1862.6,1.28250902]
[1772275883548,1.46140843,1863.2,1862.4,1.23776982]
[1772275883857,1.46140843,1863.2,1862.4,0.0011]
[1772275884409,1.46140843,1863.0,1862.4,0.0011]
[1772275885311,2.803114,1863.3,1862.5,1.19164675]
[1772275885511,1.46140843,1863.2,1862.5,1.19164675]
[1772275886509,1.46140843,1863.2,1862.4,0.0011]
[1772275886711,1.46140843,1863.0,1862.4,0.0011]
[1772275887639,5.36739842,1863.3,1862.5,1.1475081]
[1772275887640,1.46140843,1863.3,1862.5,1.1475081]
[1772275887828,1.46140843,1863.7,1863.0,1.1475081]
[1772275888535,1.46140843,1863.7,1862.9,2.58576428]
[1772275888741,1.46140843,1863.5,1862.9,2.58576428]
[1772275888939,1.46140843,1863.5,1862.9,1.12576428]
[1772275889443,1.46140843,1863.5,1862.9,2.46775747]
[1772275889639,1.46140843,1863.5,1862.9,1.12576428]
[1772275889842,1.34148959,1863.6,1863.0,1.10423422]
[1772275890146,1.34145109,1863.7,1863.0,1.10423422]
[1772275891028,6.82799742,1863.8,1863.1,2.42476515]
[1772275891029,2.80380443,1863.8,1863.1,2.42476515]
[1772275892944,2.80380443,1863.8,1863.2,1.04090294]
[1772275893244,2.80380443,1863.8,1863.3,1.04090294]
[1772275893245,0.001,1863.8,1863.3,1.04090294]
[1772275893432,0.001,1863.8,1862.9,2.36219478]
[1772275893433,1.46140843,1863.7,1862.9,2.36219478]
[1772275893621,1.46140843,1863.7,1862.9,4.37419478]
[1772275894344,1.46140843,1863.7,1863.0,0.99970789]
[1772275894847,1.46140843,1863.7,1862.9,1.34199042]
[1772275895143,1.34148959,1863.6,1862.9,2.012]
[1772275895439,1.46140843,1863.5,1862.9,2.012]
[1772275895748,1.46140843,1863.5,1862.9,2.011]
[1772275896426,1.46140843,1863.5,1862.9,2.97031227]
[1772275896623,1.34143727,1863.7,1863.0,0.95931227]
[1772275897137,6.82784419,1863.8,1863.1,0.95931227]
[1772275897547,5.36643576,1863.8,1863.1,0.95931227]
[1772275897850,0.001,1863.8,1863.1,0.95931227]
[1772275898041,6.82636812,1864.0,1863.1,0.93940868]
[1772275898238,1.34129293,1863.9,1863.2,0.91969834]
[1772275899114,1.34129293,1863.9,1863.3,1.34170557]
[1772275899318,1.34129293,1863.9,1863.4,0.91471165]
[1772275899743,2.80270136,1863.9,1863.3,1.34170557]
[1772275899938,2.80270136,1863.9,1863.3,2.25641722]
[1772275900458,2.80270136,1863.9,1862.8,0.87991714]
[1772275900459,1.46140843,1863.8,1862.8,0.87991714]
[1772275901028,1.46140843,1863.8,1863.1,0.0011]
[1772275901221,1.18897772,1863.6,1863.1,0.0011]
[1772275901657,1.18897772,1863.6,1863.0,0.0011]
[1772275902152,1.18897772,1863.6,1862.6,6.23181629]
[1772275902153,1.17210628,1863.4,1862.6,0.0011]
[1772275903568,1.17210628,1863.2,1862.6,0.0011]
[1772275905571,1.17210628,1863.0,1862.6,0.0011]
[1772275906142,1.17210628,1863.0,1862.5,0.0011]
[1772275906734,1.3418496,1863.1,1862.3,0.0011]
[1772275906735,1.17210628,1862.8,1862.3,0.0011]
[1772275907530,1.17210628,1862.6,1862.3,0.0011]
[1772275908260,1.17210628,1862.6,1862.1,0.9684222]
[1772275910070,1.17210628,1862.9,1862.1,3.01502187]
[1772275912144,1.3420657,1862.8,1862.1,3.01502187]
[1772275912358,2.51413749,1862.9,1862.2,0.65276044]
[1772275912670,1.34203121,1862.9,1862.2,0.65276044]
[1772275913074,5.36786494,1863.0,1862.2,0.65276044]
[1772275913075,1.17210628,1863.0,1862.2,0.65276044]
[1772275913271,1.17210628,1863.0,1862.2,0.65386044]
[1772275913569,0.001,1862.8,1862.2,0.65386044]
[1772275914150,0.001,1862.8,1862.3,1.34242603]
[1772275914334,0.001,1862.8,1862.3,1.9618071]
[1772275916442,1.17310628,1862.8,1862.2,3.34656106]
[1772275917462,1.17310628,1862.8,1862.2,0.0011]
[1772275918272,1.17210628,1862.6,1862.2,0.0011]
[1772275918642,2.51522181,1862.8,1862.2,0.55558333]
[1772275918873,0.001,1862.8,1862.2,0.55558333]
[1772275920256,0.001,1862.8,1862.5,0.52293775]
[1772275920461,5.36692941,1863.3,1862.6,0.52293775]
[1772275921662,2.51378394,1863.4,1862.6,0.52293775]
[1772275921967,1.17210628,1863.3,1862.6,0.52293775]
[1772275922272,2.51374213,1863.4,1862.7,1.83314351]
[1772275922474,2.51374213,1863.4,1862.7,0.49100576]
[1772275922475,1.17210628,1863.3,1862.7,0.49100576]
[1772275922655,1.17210628,1863.3,1862.7,2.49300576]
[1772275922975,1.34163585,1863.4,1862.7,2.49300576]
[1772275923155,2.51374213,1863.4,1862.8,0.49100576]
[1772275923473,2.513748,1863.4,1862.8,0.49100576]
[1772275924557,1.17210628,1863.3,1862.6,3.80377272]
[1772275924785,1.17210628,1863.3,1862.6,3.34315642]
[1772275924978,1.17210628,1863.3,1862.6,3.80277272]
[1772275925556,1.17310628,1863.3,1862.6,3.80277272]
[1772275925984,1.17310628,1863.3,1862.6,1.80277272]
[1772275926189,1.17310628,1863.3,1862.6,3.80277272]
[1772275926470,1.34177758,1863.2,1862.6,3.80277272]
[1772275926779,2.51481527,1863.3,1862.7,0.43079336]
[1772275926987,6.01522559,1863.3,1862.7,0.43079336]
[1772275928787,4.6735166,1863.3,1862.8,1.3420657]
[1772275930490,4.6735166,1863.3,1862.8,1.70421693]
[1772275930994,4.6735166,1863.3,1862.9,0.36215123]
[1772275931493,5.73215627,1863.5,1862.8,0.34710302]
[1772275931494,0.36580189,1863.5,1862.8,0.34710302]
[1772275931966,3.50041032,1863.6,1862.8,0.34710302]
[1772275932165,3.50041032,1863.6,1863.1,0.33321177]
[1772275932367,3.50041032,1863.6,1863.3,0.33321177]
[1772275932566,0.001,1863.7,1863.3,0.33321177]
[1772275932993,0.001,1863.7,1863.4,1.34163357]
[1772275933673,0.001,1863.7,1863.3,1.341663]
[1772275934179,0.001,1863.7,1863.3,1.66108081]
[1772275935895,0.93372659,1863.7,1863.3,3.341663]
[1772275938283,0.001,1863.6,1863.3,3.341663]
[1772275938789,0.001,1863.6,1863.3,3.343663]
[1772275940607,0.001,1863.6,1863.3,3.34367442]
[1772275940790,0.93372659,1863.6,1863.3,2.004]
[1772275941806,0.001,1863.6,1863.3,2.21750083]
[1772275943702,0.001,1863.6,1863.3,3.55916703]
[1772275944474,0.001,1863.6,1863.3,3.3456662]
[1772275944679,0.001,1863.6,1863.4,0.17571586]
[1772275944874,0.001,1863.7,1863.4,0.17571586]
[1772275945811,0.001,1863.7,1863.6,0.16234385]
[1772275947522,0.001,1863.7,1863.4,3.34757901]
[1772275947917,0.93372659,1863.7,1863.4,3.34757901]
[1772275948212,0.001,1863.7,1863.4,3.48553503]
[1772275948583,0.001,1863.7,1863.5,0.12590874]
[1772275950085,0.001,1863.7,1863.6,1.34148959]
[1772275952184,0.001,1863.7,1863.5,5.36614043]
[1772275952919,0.001,1863.7,1863.6,2.011]
[1772275954499,0.001,1863.7,1863.6,3.35248959]
[1772275957010,0.001,1863.7,1863.4,1.34270078]
[1772275957011,0.93372659,1863.7,1863.4,1.34270078]
[1772275957317,0.93372659,1863.7,1863.5,2.017]
[1772275958095,0.93372659,1863.7,1863.5,2.03912227]
[1772275958096,0.001,1863.7,1863.5,2.03912227]
[1772275958295,0.001,1863.7,1863.6,0.01108463]
[1772275960212,0.001,1863.7,1863.6,1.35257422]
[1772275961804,0.001,1863.7,1863.6,1.34148959]
[1772275963226,0.001,1863.7,1863.6,2.09019594]
[1772275966711,0.001,1863.7,1863.6,2.029]
[1772275969628,0.81623485,1863.6,1863.3,1.34280334]
[1772275971933,0.001,1863.7,1863.4,0.74980635]
[1772275973329,0.001,1863.7,1863.5,2.032]
[1772275975120,0.81723485,1863.7,1863.5,3.37352844]
[1772275975330,0.81723485,1863.7,1863.5,3.37462844]
[1772275975527,0.001,1863.6,1863.5,3.37462844]
[1772275975728,0.001,1863.6,1863.5,3.37572844]
[1772275981038,0.001,1863.6,1863.5,2.0342]
[1772275981537,0.001,1863.6,1863.5,3.37576157]
[1772275981737,0.81723485,1863.6,1863.5,3.37576157]
[1772275981914,0.81723485,1863.6,1863.4,0.0011]
[1772275982113,0.81723485,1863.6,1863.4,2.0401]
[1772275982338,0.81723485,1863.6,1863.4,3.38172583]
[1772275982529,0.001,1863.6,1863.4,3.38272583]
[1772275988140,0.001,1863.6,1863.5,0.0011]
[1772275991362,0.74870635,1864.2,1863.5,0.0011]
[1772275991363,4.10108857,1864.5,1863.7,0.64458715]
[1772275991550,4.10108857,1864.5,1863.9,0.74870635]
[1772275991551,0.60067825,1864.4,1863.9,0.74870635]
[1772275992130,0.60067825,1864.4,1863.9,1.3932935]
[1772275992465,0.60067825,1864.4,1864.0,1.34120171]
[1772275992670,0.60067825,1864.4,1864.1,2.049]
[1772275994540,0.60067825,1864.4,1864.1,3.39012131]
[1772275995566,0.60067825,1864.4,1864.1,4.03470846]
[1772275995766,3.50041032,1864.5,1864.1,4.03470846]
[1772275996070,0.60067825,1864.1,1863.8,2.05]
[1772275996570,0.60067825,1864.1,1863.6,0.64458715]
[1772275996775,1.94185276,1864.1,1863.6,0.64458715]
[1772275996949,1.94185276,1864.1,1863.6,2.69458715]
[1772275997266,1.94185276,1864.1,1863.6,4.03606248]
[1772275998550,0.60067825,1864.1,1863.7,0.64458715]
[1772275998872,0.60067825,1864.1,1863.7,1.9859358]
[1772275999169,5.44213202,1864.3,1863.8,0.64458715]
[1772276000065,11.96752701,1864.7,1863.9,0.64458715]
[1772276000255,1.94144838,1864.6,1863.9,0.64458715]
[1772276000463,0.60067825,1864.5,1863.9,0.64458715]
[1772276001753,0.60067825,1864.5,1864.0,1.98578886]
[1772276001754,1.94156143,1864.5,1864.0,1.98578886]
[1772276002463,0.60067825,1864.3,1863.8,0.64458715]
[1772276003371,0.60067825,1864.3,1863.6,1.9860445]
[1772276003869,1.34105782,1864.2,1863.6,1.9860445]
[1772276004078,0.60067825,1864.1,1863.6,1.9860445]
[1772276004656,0.60067825,1864.1,1863.7,0.64458715]
[1772276004859,0.60067825,1864.1,1863.6,1.9860445]
[1772276005056,0.60067825,1864.1,1863.7,0.64458715]
[1772276005262,1.94166586,1864.3,1863.7,0.64458715]
[1772276005471,0.60067825,1864.2,1863.7,0.64458715]
[1772276005975,0.60067825,1864.2,1863.8,1.34134563]
[1772276006475,1.34096263,1864.4,1863.9,0.64458715]
[1772276006679,0.60067825,1864.3,1863.9,0.64458715]
[1772276007175,0.60067825,1864.3,1863.6,6.01043834]
[1772276007363,0.60067825,1864.3,1863.7,1.34137091]
[1772276007979,0.60067825,1864.3,1863.6,1.98602109]
[1772276008202,0.60067825,1864.1,1863.5,1.34264245]
[1772276010205,0.60067825,1863.9,1863.5,1.34264245]
[1772276011276,0.60067825,1863.9,1863.5,1.9872296]
[1772276011701,0.60067825,1863.9,1863.5,0.64568715]
[1772276011906,0.60067825,1863.9,1863.5,0.0011]
[1772276012402,1.34125168,1864.0,1863.6,0.64568715]
[1772276012583,0.60067825,1863.9,1863.6,0.0011]
[1772276014604,0.001,1864.0,1863.6,0.64568715]
[1772276015167,1.34220519,1864.0,1863.6,0.64568715]
[1772276015370,0.001,1864.0,1863.6,0.64568715]
[1772276015570,1.3422067,1864.0,1863.6,0.64568715]
[1772276016303,0.001,1864.0,1863.6,0.64568715]
[1772276016972,0.001,1864.0,1863.7,0.64458715]
[1772276018300,4.84146906,1864.2,1863.7,0.64458715]
[1772276018503,5.44214731,1864.2,1863.7,0.64458715]
[1772276018706,0.60067825,1864.1,1863.7,0.64458715]
[1772276019373,0.60067825,1864.1,1863.8,0.64458715]
[1772276019975,4.84146906,1864.2,1863.8,0.64458715]
[1772276020176,5.44214731,1864.2,1863.8,0.64458715]
[1772276022079,4.84146906,1864.2,1863.8,0.64458715]
[1772276022305,5.57163955,1864.2,1863.8,0.64458715]
[1772276022809,0.73017049,1864.1,1863.8,0.64458715]
[1772276023821,4.84146906,1864.2,1863.8,0.64458715]
[1772276024105,5.57163955,1864.2,1863.8,0.64458715]
[1772276024476,0.001,1864.1,1863.8,0.64458715]
[1772276025503,0.001,1864.1,1863.7,0.0011]
[1772276025504,0.73117049,1864.1,1863.7,0.0011]
[1772276025713,0.73117049,1864.1,1863.7,1.34251349]
[1772276025878,0.73117049,1864.1,1863.7,2.05677772]
[1772276026074,0.73117049,1864.1,1863.7,0.71536423]
[1772276027690,2.07230267,1864.1,1863.8,0.71426423]
[1772276029511,0.73017049,1864.0,1863.7,0.0011]
[1772276029711,0.73017049,1863.9,1863.7,0.0011]
[1772276030324,2.07142994,1864.0,1863.7,0.0011]
[1772276030509,0.73017049,1864.0,1863.7,0.0011]
[1772276030812,1.34218493,1864.1,1863.7,0.71536423]
[1772276032810,1.34218493,1864.1,1863.7,1.34250056]
[1772276032995,1.34218493,1864.1,1863.8,0.71426423]
[1772276033312,0.001,1864.1,1863.8,0.71426423]
[1772276035118,0.001,1864.1,1863.9,0.71426423]
[1772276036606,0.001,1864.1,1863.9,0.71536423]
[1772276036986,0.001,1864.0,1863.9,2.0566379]
[1772276040197,0.001,1864.0,1863.9,0.71536423]
[1772276040908,0.73117049,1864.0,1863.9,0.0011]
[1772276041507,0.001,1864.0,1863.9,0.0011]
[1772276045638,0.73117049,1864.0,1863.9,0.0011]
[1772276047107,0.001,1864.0,1863.9,0.0011]
[1772276047607,0.001,1864.1,1864.0,0.71426423]
[1772276048839,0.001,1864.1,1863.9,0.71536423]
[1772276050139,0.001,1864.1,1864.0,0.0011]
[1772276052227,0.001,1864.1,1864.0,0.77632104]
[1772276053427,3.50041032,1864.5,1864.1,0.77522104]
[1772276054525,3.50041032,1864.5,1864.3,0.77522104]
[1772276056343,0.77398175,1864.9,1864.5,0.77522104]
[1772276056948,0.77398175,1864.8,1864.5,0.77522104]
[1772276059256,18.86251649,1865.0,1864.6,0.77522104]
[1772276059257,15.61492888,1865.0,1864.6,0.77522104]
[1772276059635,14.27439207,1865.0,1864.6,0.77522104]
[1772276060142,15.61488281,1865.0,1864.6,0.77522104]
[1772276060318,14.27439207,1865.0,1864.6,0.77522104]
[1772276060719,15.61488722,1865.0,1864.6,0.77522104]
[1772276061125,10.77398175,1865.0,1864.7,0.77522104]
[1772276061848,10.0,1865.0,1864.7,0.77522104]
[1772276062147,0.77398175,1865.1,1864.8,0.77522104]
[1772276062319,9.21257492,1865.2,1864.8,0.77522104]
[1772276062520,1.21257492,1865.1,1864.8,0.77522104]
[1772276063254,1.21257492,1865.1,1864.9,0.77522104]
[1772276063826,3.50041032,1865.4,1864.9,0.77522104]
[1772276064018,9.21257492,1865.3,1864.9,0.77522104]
[1772276065048,9.98655667,1865.3,1864.9,0.77522104]
[1772276065455,9.98655667,1865.3,1865.0,0.77522104]
[1772276067152,0.77398175,1865.1,1864.7,2.11588701]
[1772276067453,0.77398175,1865.1,1864.8,0.77522104]
[1772276068228,9.21257492,1865.1,1864.8,0.77522104]
[1772276069644,9.21257492,1865.1,1864.9,0.77522104]
[1772276073958,9.60943038,1865.4,1865.0,0.77522104]
[1772276073959,3.26298175,1865.4,1865.0,0.77522104]
[1772276074162,9.21257492,1865.2,1865.0,0.77522104]
[1772276075526,0.77398175,1865.1,1864.8,2.11582744]
[1772276075853,9.98655667,1865.1,1864.8,2.11582744]
[1772276076562,9.98655667,1865.1,1864.9,0.77522104]
[1772276077174,9.21257492,1865.1,1864.9,0.77522104]
[1772276078069,9.21257492,1865.1,1864.9,2.11571517]
[1772276078274,0.77398175,1865.3,1865.0,0.77522104]
[1772276078569,1.21257492,1865.2,1865.0,0.77522104]
[1772276079154,8.77398175,1865.3,1865.0,0.77522104]
[1772276079360,8.0,1865.2,1865.0,0.77522104]
[1772276080169,8.77398175,1865.2,1864.9,1.34049413]
[1772276080754,8.77398175,1865.2,1864.9,2.25144797]
[1772276084541,0.77398175,1865.2,1864.9,2.25144797]
[1772276085475,8.0,1865.1,1864.9,2.25144797]
[1772276086349,0.77398175,1865.2,1864.9,2.25144797]
[1772276086649,8.0,1865.1,1864.9,2.25144797]
[1772276087154,8.0,1865.1,1865.0,0.0011]
[1772276087479,8.001,1865.1,1865.0,0.0011]
[1772276089162,8.001,1865.1,1864.8,6.11029058]
[1772276089163,0.9038736,1865.1,1864.2,2.28570115]
[1772276089357,1.65082574,1864.5,1864.1,0.95319119]
[1772276089677,0.9028736,1864.5,1864.1,0.95319119]
[1772276090053,0.869,1864.6,1864.0,0.0011]
[1772276090054,0.9028736,1864.4,1864.0,0.0011]
[1772276090276,0.9028736,1864.3,1864.0,1.34489413]
[1772276093289,5.71429885,1864.2,1864.0,2.29808532]
[1772276093495,5.71429885,1864.2,1864.0,1.34489413]
[1772276093496,6.61717245,1864.2,1864.0,1.34489413]
[1772276093988,5.71429885,1864.1,1864.0,1.34489413]
[1772276094281,5.71429885,1864.1,1864.0,2.29808532]
[1772276094497,1.34145034,1865.1,1864.2,0.95319119]
[1772276094694,5.64216285,1865.0,1864.7,0.74795214]
[1772276095289,5.64216285,1865.0,1864.6,0.95319119]
[1772276095485,5.64216285,1864.9,1864.7,1.34379413]
[1772276095653,5.64216285,1865.0,1864.7,1.34379413]
[1772276096363,6.54503645,1865.0,1864.7,1.34379413]
[1772276097381,7.88552626,1865.0,1864.7,1.34379413]
[1772276100304,6.54503645,1864.9,1864.7,1.34379413]
[1772276101797,5.64216285,1864.8,1864.6,0.95319119]
[1772276103499,7.88883058,1864.7,1864.3,0.95319119]
[1772276103796,2.24666773,1864.7,1864.3,0.95319119]
[1772276104499,0.9028736,1864.5,1864.2,0.0011]
[1772276104996,0.9028736,1864.3,1864.0,0.0011]
[1772276105706,6.98595698,1864.2,1864.0,0.0011]
[1772276106007,0.9028736,1864.1,1864.0,0.0011]
[1772276106575,6.54503645,1864.1,1864.0,0.0011]
[1772276108292,0.9028736,1863.9,1863.8,0.0011]
[1772276109581,11.61081833,1864.4,1863.8,0.95429119]
[1772276109582,0.9028736,1864.3,1863.8,0.95429119]
[1772276109782,0.9028736,1864.2,1863.8,0.95429119]
[1772276110084,0.9028736,1864.2,1863.8,0.0011]
[1772276110690,6.98485698,1864.1,1863.8,0.0011]
[1772276110907,1.03991733,1864.0,1863.8,0.0011]
[1772276112174,1.03991733,1864.0,1863.9,0.0011]
[1772276112503,1.03991733,1864.0,1863.8,0.0011]
[1772276112504,6.68208018,1863.9,1863.8,0.0011]
[1772276114630,1.03991733,1863.9,1863.8,0.0011]
[1772276117701,8.02477431,1863.9,1863.8,0.0011]
[1772276119113,4.54032765,1864.3,1863.8,1.1472543]
[1772276119415,1.34269413,1864.2,1863.8,1.1472543]
[1772276120189,1.34269413,1864.2,1863.9,2.48742797]
[1772276120410,5.64216285,1864.1,1863.9,2.48742797]
[1772276121821,6.68208018,1864.1,1863.9,1.34127367]
[1772276121988,5.64216285,1864.0,1863.9,1.34127367]
[1772276122390,3.74849924,1864.0,1863.9,2.48742797]
[1772276122589,1.87018421,1864.0,1863.9,2.48742797]
[1772276122891,1e-08,1864.0,1863.9,2.48742797]
[1772276124026,1e-08,1864.0,1863.9,2.48852797]
[1772276124522,1.34269413,1864.0,1863.9,1.1472543]
[1772276124717,1.34269413,1864.0,1863.9,0.0011]
[1772276131612,3.50041032,1864.3,1864.0,1.1461543]